bitfinex-derivatives/quotes_BTCF0:USTF0_20240903
["timestamp","ask_amount","ask_price","bid_price","bid_amount"]
[1725332799860,0.0002527,59341.0,59340.0,1.02950749]
[1725332800260,0.0002527,59341.0,59340.0,1.62950749]
[1725332800465,0.0002527,59341.0,59340.0,1.02950749]
[1725332802567,0.0002527,59341.0,59340.0,1.02850749]
[1725332802869,0.0002527,59341.0,59340.0,1.02950749]
[1725332804066,0.07404882,59341.0,59340.0,1.02950749]
[1725332805165,0.07404882,59341.0,59340.0,1.62950749]
[1725332805367,0.87,59347.0,59346.0,0.067397]
[1725332805568,0.67549724,59347.0,59346.0,0.585594]
[1725332805873,0.04769015,59348.0,59347.0,0.134792]
[1725332806167,0.11589814,59350.0,59347.0,0.09833862]
[1725332806474,0.1363521,59356.0,59355.0,0.067387]
[1725332806771,0.17369939,59356.0,59355.0,0.428187]
[1725332806962,0.72369939,59356.0,59355.0,0.428187]
[1725332807168,0.59124729,59356.0,59355.0,0.428187]
[1725332808771,0.59124729,59356.0,59355.0,0.429187]
[1725332809573,0.59124729,59356.0,59355.0,0.429587]
[1725332810075,0.59124729,59356.0,59355.0,0.430587]
[1725332810685,0.59124729,59356.0,59355.0,0.43531236]
[1725332810971,0.55,59356.0,59355.0,1.54075236]
[1725332811367,0.55,59356.0,59355.0,0.43531236]
[1725332812072,0.59124685,59356.0,59355.0,0.43531236]
[1725332812276,0.55,59356.0,59355.0,0.43531236]
[1725332818989,0.55,59356.0,59355.0,0.07451236]
[1725332819286,0.55,59356.0,59355.0,0.43531236]
[1725332822685,0.55,59356.0,59355.0,0.0024]
[1725332822686,0.617386,59356.0,59355.0,0.0024]
[1725332822879,0.067396,59347.0,59343.0,0.36574937]
[1725332823075,0.0674,59344.0,59343.0,0.3610527]
[1725332823370,0.0674,59344.0,59343.0,0.0002527]
[1725332823371,0.1574,59344.0,59343.0,0.0002527]
[1725332823576,0.7074,59344.0,59343.0,0.0002527]
[1725332823771,1.28032,59344.0,59343.0,0.0002527]
[1725332823981,1.28032,59344.0,59339.0,0.62838]
[1725332823982,0.067404,59340.0,59339.0,0.62838]
[1725332824176,0.067404,59340.0,59339.0,0.6273]
[1725332824377,0.066404,59340.0,59339.0,0.6273]
[1725332824789,0.065404,59340.0,59339.0,0.6273]
[1725332825676,0.065404,59340.0,59339.0,0.6283]
[1725332826083,0.066404,59340.0,59339.0,0.6283]
[1725332827086,0.066404,59340.0,59339.0,0.091]
[1725332827275,0.24913888,59340.0,59339.0,0.091]
[1725332827475,0.34312446,59340.0,59339.0,0.091]
[1725332827884,0.34795139,59340.0,59339.0,0.091]
[1725332829187,0.16038958,59340.0,59339.0,0.091]
[1725332829988,0.32584549,59340.0,59339.0,0.091]
[1725332830383,0.27412389,59340.0,59339.0,0.091]
[1725332830584,0.10866798,59340.0,59339.0,0.091]
[1725332832492,0.18320768,59340.0,59339.0,0.091]
[1725332832698,0.067404,59340.0,59339.0,0.091]
[1725332832985,0.11783223,59340.0,59339.0,0.091]
[1725332833491,0.002,59340.0,59339.0,0.091]
[1725332833683,0.002,59340.0,59339.0,0.001]
[1725332833997,0.002,59340.0,59339.0,0.091]
[1725332837085,0.002,59340.0,59339.0,0.001]
[1725332837391,0.002,59340.0,59339.0,0.091]
[1725332839283,0.069404,59340.0,59339.0,0.001]
[1725332839488,0.170104,59340.0,59339.0,0.001]
[1725332841714,0.170104,59340.0,59339.0,0.091]
[1725332842111,0.17478132,59340.0,59339.0,0.091]
[1725332842311,0.21604463,59340.0,59339.0,0.091]
[1725332844817,0.21604445,59340.0,59339.0,0.091]
[1725332847417,0.26308761,59340.0,59339.0,0.091]
[1725332847817,0.21136713,59340.0,59339.0,0.091]
[1725332848521,0.26308652,59340.0,59339.0,0.091]
[1725332848821,0.41197645,59340.0,59339.0,0.091]
[1725332849323,0.170104,59340.0,59339.0,0.091]
[1725332849517,0.069404,59340.0,59339.0,0.091]
[1725332853117,0.002,59340.0,59339.0,0.091]
[1725332853319,0.002,59340.0,59339.0,0.519205]
[1725332857231,0.09497594,59340.0,59339.0,0.519205]
[1725332857437,0.1106637,59340.0,59339.0,0.001]
[1725332857930,0.2006637,59340.0,59339.0,0.001]
[1725332858127,0.2523859,59340.0,59339.0,0.001]
[1725332858527,0.2006637,59340.0,59339.0,0.001]
[1725332858923,0.2523858,59340.0,59339.0,0.001]
[1725332859119,0.1623858,59340.0,59339.0,0.001]
[1725332859324,0.11066867,59340.0,59339.0,0.001]
[1725332859630,0.25239113,59340.0,59339.0,0.001]
[1725332860325,0.92340704,59340.0,59339.0,0.001]
[1725332860526,0.75795113,59340.0,59339.0,0.001]
[1725332861230,0.81838982,59340.0,59339.0,0.001]
[1725332861430,0.88579597,59340.0,59339.0,0.001]
[1725332864332,0.732368,59340.0,59339.0,0.001]
[1725332864928,0.226808,59340.0,59339.0,0.001]
[1725332866825,0.587608,59340.0,59339.0,0.001]
[1725332870040,0.226808,59340.0,59339.0,0.001]
[1725332870234,0.587608,59340.0,59339.0,0.001]
[1725332871338,0.74104546,59340.0,59339.0,0.001]
[1725332873741,1.29104546,59340.0,59339.0,0.001]
[1725332874144,1.29104783,59340.0,59339.0,0.001]
[1725332874443,1.35845183,59340.0,59339.0,0.001]
[1725332878043,1.86401183,59340.0,59339.0,0.001]
[1725332878239,1.77401183,59340.0,59339.0,0.001]
[1725332878445,1.86401183,59340.0,59339.0,0.001]
[1725332879045,1.35845183,59340.0,59339.0,0.001]
[1725332879442,1.205012,59340.0,59339.0,0.001]
[1725332880048,1.205012,59340.0,59339.0,1e-06]
[1725332884849,2.310572,59340.0,59339.0,1e-06]
[1725332885041,0.202248,59330.0,59328.0,0.0008]
[1725332885243,0.134834,59329.0,59328.0,0.0008]
[1725332885547,0.563451,59329.0,59328.0,0.0008]
[1725332885852,1.113451,59329.0,59328.0,0.0008]
[1725332886059,1.209451,59329.0,59328.0,0.0008]
[1725332886347,1.201451,59329.0,59328.0,0.0008]
[1725332886743,1.206451,59329.0,59328.0,0.0018]
[1725332886952,1.220451,59329.0,59328.0,0.0028]
[1725332887747,1.22533159,59329.0,59328.0,0.0028]
[1725332894465,1.56118133,59329.0,59328.0,0.0028]
[1725332895054,1.37879985,59329.0,59328.0,0.0028]
[1725332896462,1.46879985,59329.0,59328.0,0.0028]
[1725332899864,1.65104148,59329.0,59328.0,0.0028]
[1725332900060,1.46879985,59329.0,59328.0,0.0028]
[1725332901563,1.46879985,59329.0,59320.0,0.0039]
[1725332901564,0.134852,59321.0,59320.0,0.0039]
[1725332901764,0.134852,59321.0,59318.0,0.1007]
[1725332901765,0.134856,59319.0,59318.0,0.1007]
[1725332901958,0.585656,59319.0,59318.0,0.1007]
[1725332902165,0.067436,59312.0,59311.0,0.0039]
[1725332902359,0.067437,59311.0,59310.0,0.0989]
[1725332902771,0.616437,59311.0,59310.0,0.0989]
[1725332903668,0.683874,59311.0,59310.0,0.0989]
[1725332903864,1.044674,59311.0,59310.0,0.0989]
[1725332904064,1.044674,59311.0,59306.0,0.0961]
[1725332904065,0.134884,59307.0,59306.0,0.0961]
[1725332904262,0.224884,59307.0,59306.0,0.0961]
[1725332904465,0.157442,59307.0,59306.0,0.0961]
[1725332905384,0.155442,59307.0,59306.0,0.0961]
[1725332906981,0.159442,59307.0,59306.0,0.0961]
[1725332909082,0.160242,59307.0,59306.0,0.0961]
[1725332913990,0.070242,59307.0,59306.0,0.0961]
[1725332914282,0.0048,59307.0,59306.0,0.253543]
[1725332918080,0.12079557,59307.0,59306.0,0.253543]
[1725332918684,0.12079557,59307.0,59306.0,1.359383]
[1725332918685,0.0048,59307.0,59306.0,1.359383]
[1725332920194,0.0048,59307.0,59306.0,1.3641903]
[1725332921595,0.0048,59307.0,59306.0,0.7641903]
[1725332922589,0.0048,59307.0,59306.0,1.3641903]
[1725332923492,0.0048,59307.0,59306.0,0.2583503]
[1725332930407,0.0048,59307.0,59306.0,0.157443]
[1725332930604,0.0048,59307.0,59306.0,0.067443]
[1725332931293,0.072242,59307.0,59306.0,0.067443]
[1725332931496,0.162242,59307.0,59306.0,0.067443]
[1725332931696,0.2552774,59307.0,59306.0,0.067443]
[1725332931903,0.2552774,59307.0,59303.0,0.067446]
[1725332931904,0.33697256,59307.0,59303.0,0.067446]
[1725332932109,0.0008,59304.0,59303.0,0.067446]
[1725332932404,0.04208609,59304.0,59303.0,0.067446]
[1725332932901,0.04208609,59304.0,59301.0,0.09]
[1725332932902,0.067447,59303.0,59301.0,0.09]
[1725332933109,0.17486768,59302.0,59301.0,0.09]
[1725332933306,0.17486768,59302.0,59299.0,0.067451]
[1725332933307,0.067449,59301.0,59299.0,0.067451]
[1725332933498,0.04208609,59300.0,59299.0,0.067451]
[1725332934307,0.067451,59299.0,59297.0,0.1098]
[1725332934608,0.33297632,59298.0,59297.0,0.1098]
[1725332935013,0.24318584,59298.0,59297.0,0.1998]
[1725332935407,0.2431888,59298.0,59297.0,0.1998]
[1725332935605,0.24318857,59298.0,59297.0,0.2048]
[1725332935805,0.40164057,59298.0,59297.0,0.005]
[1725332936005,0.25229412,59298.0,59297.0,0.005]
[1725332936202,0.80229412,59298.0,59294.0,0.157456]
[1725332936409,0.13354955,59295.0,59294.0,0.157456]
[1725332937311,0.22354955,59295.0,59292.0,0.3608]
[1725332937612,0.0008,59293.0,59292.0,0.3608]
[1725332937810,0.29100755,59293.0,59292.0,0.3608]
[1725332938010,0.29100755,59293.0,59284.0,0.3276]
[1725332938011,0.42841278,59293.0,59284.0,0.3276]
[1725332938213,0.42841278,59293.0,59283.0,0.00104]
[1725332938214,0.09,59286.0,59283.0,0.00104]
[1725332938511,0.09,59286.0,59281.0,0.00487204]
[1725332938512,0.708266,59286.0,59281.0,0.00487204]
[1725332938815,0.812166,59286.0,59281.0,0.00487204]
[1725332939030,0.86393037,59286.0,59279.0,0.067473]
[1725332939210,0.067475,59278.0,59277.0,0.3237]
[1725332939411,0.067475,59278.0,59274.0,0.3608]
[1725332939412,0.067477,59276.0,59274.0,0.3608]
[1725332939607,0.0008,59275.0,59274.0,0.3608]
[1725332939914,0.0008,59278.0,59274.0,0.3608]
[1725332940215,0.0008,59278.0,59277.0,0.09]
[1725332942015,0.0028,59278.0,59277.0,0.09]
[1725332942520,0.0088,59278.0,59277.0,0.09]
[1725332943921,0.0088,59278.0,59277.0,0.157476]
[1725332944617,0.0088,59278.0,59277.0,1.263556]
[1725332945509,0.00025291,59283.0,59282.0,0.06747]
[1725332945811,0.00025291,59283.0,59282.0,0.42827]
[1725332946118,0.00025291,59283.0,59282.0,1.62431]
[1725332947017,0.0039,59290.0,59289.0,0.067462]
[1725332947212,0.0039,59297.0,59289.0,0.4508]
[1725332947419,0.55879804,59300.0,59296.0,0.09]
[1725332947616,0.55879804,59300.0,59290.0,0.2042]
[1725332947617,0.55489804,59300.0,59299.0,0.09]
[1725332947811,0.55,59300.0,59299.0,0.09]
[1725332949020,0.564,59300.0,59299.0,0.09]
[1725332949424,0.564,59300.0,59299.0,0.157451]
[1725332949625,0.57,59300.0,59299.0,0.158451]
[1725332952029,0.57,59300.0,59299.0,0.228451]
[1725332953933,0.02,59300.0,59299.0,0.228451]
[1725332961227,0.02,59300.0,59299.0,0.068451]
[1725332961524,0.02,59300.0,59299.0,0.228451]
[1725332961727,0.06128631,59300.0,59299.0,0.228451]
[1725332965243,0.11594105,59302.0,59299.0,1.494371]
[1725332965429,0.00025291,59305.0,59304.0,0.067445]
[1725332965625,0.00025291,59305.0,59304.0,0.588645]
[1725332965939,0.00025291,59305.0,59304.0,0.588245]
[1725332967830,0.01425291,59305.0,59304.0,0.589245]
[1725332968338,0.00025291,59305.0,59304.0,0.588245]
[1725332968536,0.00525291,59305.0,59304.0,0.588245]
[1725332968740,0.00625291,59305.0,59304.0,0.589245]
[1725332969637,0.00425291,59305.0,59304.0,0.589245]
[1725332970028,0.00425291,59305.0,59304.0,0.59397271]
[1725332970938,0.00425291,59305.0,59304.0,1.69985271]
[1725332971143,0.00125291,59305.0,59304.0,1.69985271]
[1725332971340,0.00625291,59305.0,59304.0,1.69985271]
[1725332971543,0.01125291,59305.0,59304.0,1.70085271]
[1725332971849,0.00925291,59305.0,59304.0,1.69985271]
[1725332972237,0.00425291,59305.0,59304.0,1.69885271]
[1725332972533,0.01025291,59305.0,59304.0,1.70085271]
[1725332973344,0.55,59311.0,59304.0,1.70085271]
[1725332973638,0.16,59333.0,59314.0,0.067434]
[1725332973639,0.0039,59315.0,59314.0,0.067434]
[1725332973941,0.0039,59322.0,59319.0,0.067427]
[1725332973942,0.55,59321.0,59319.0,0.067427]
[1725332974235,0.0039,59322.0,59320.0,0.0904]
[1725332974236,0.067426,59322.0,59320.0,0.0904]
[1725332974436,0.067426,59322.0,59321.0,0.0004]
[1725332974741,0.617426,59322.0,59321.0,0.0004]
[1725332975846,0.707426,59322.0,59321.0,0.0004]
[1725332976340,0.708426,59322.0,59321.0,0.0014]
[1725332977250,0.067427,59320.0,59315.0,0.00025291]
[1725332977433,0.518632,59316.0,59315.0,0.00025291]
[1725332977635,0.428632,59316.0,59315.0,0.00025291]
[1725332978345,0.934392,59316.0,59315.0,0.00025291]
[1725332978642,0.944392,59316.0,59315.0,0.00125291]
[1725332978842,0.945392,59316.0,59315.0,0.00225291]
[1725332980036,0.439632,59316.0,59315.0,0.00225291]
[1725332980241,0.44448065,59316.0,59315.0,0.00225291]
[1725332980746,0.44348065,59316.0,59315.0,0.00225291]
[1725332980945,0.44648065,59316.0,59315.0,0.00225291]
[1725332984750,0.59997241,59316.0,59315.0,0.00225291]
[1725332986245,0.66740441,59316.0,59315.0,0.00225291]
[1725332986746,0.59997241,59316.0,59315.0,0.00225291]
[1725332988543,0.59997217,59316.0,59315.0,0.00225291]
[1725332990345,0.6486895,59316.0,59315.0,0.00225291]
[1725332990549,0.68997361,59316.0,59315.0,0.00225291]
[1725332991943,0.53648065,59316.0,59315.0,0.00225291]
[1725332992741,0.62308065,59316.0,59315.0,0.00225291]
[1725332993340,0.66436463,59316.0,59315.0,0.00225291]
[1725332995349,0.6643644,59316.0,59315.0,0.00225291]
[1725332996850,0.62308065,59316.0,59315.0,0.00225291]
[1725332997057,0.66436351,59316.0,59315.0,0.00225291]
[1725332997247,0.66436373,59316.0,59315.0,0.00225291]
[1725332997751,0.57436373,59316.0,59315.0,0.00225291]
[1725332998656,0.53308065,59316.0,59315.0,0.00225291]
[1725332998857,0.57436397,59316.0,59315.0,0.00225291]
[1725332999158,0.66436397,59316.0,59315.0,0.00225291]
[1725332999851,0.77657483,59316.0,59315.0,0.00225291]
[1725333000356,0.7765747,59316.0,59315.0,0.00225291]
[1725333004159,0.8440067,59316.0,59315.0,0.00225291]
[1725333004564,0.7765747,59316.0,59315.0,0.00225291]
[1725333005057,0.4157747,59316.0,59315.0,0.00225291]
[1725333005256,0.8440067,59316.0,59315.0,0.00225291]
[1725333006158,0.134882,59308.0,59307.0,0.0039]
[1725333006365,0.134882,59308.0,59295.0,0.3237]
[1725333006366,0.06745,59300.0,59297.0,0.071353]
[1725333006657,0.71087922,59300.0,59297.0,0.067453]
[1725333006859,0.61785,59300.0,59297.0,0.067453]
[1725333007462,0.61685,59300.0,59297.0,0.067453]
[1725333007861,0.61685,59300.0,59297.0,0.07228888]
[1725333008166,0.61585,59300.0,59297.0,0.07228888]
[1725333008863,0.61585,59300.0,59295.0,0.09]
[1725333008864,0.62185,59300.0,59299.0,0.2099]
[1725333009261,0.62585,59300.0,59299.0,0.2109]
[1725333013964,0.5604,59300.0,59299.0,0.278351]
[1725333014476,0.0104,59300.0,59299.0,1.745071]
[1725333014773,0.05168437,59300.0,59299.0,1.745071]
[1725333017766,0.05168522,59300.0,59299.0,1.745071]
[1725333019169,0.0104,59300.0,59299.0,1.745071]
[1725333020174,0.12674818,59300.0,59299.0,1.745071]
[1725333020474,0.12676134,59300.0,59299.0,1.745071]
[1725333021271,0.0104,59300.0,59299.0,1.745071]
[1725333022672,0.0104,59300.0,59299.0,1.79558471]
[1725333025268,0.0104,59300.0,59299.0,1.745071]
[1725333025670,0.00025291,59305.0,59304.0,0.067445]
[1725333025871,0.55,59322.0,59307.0,0.067442]
[1725333025872,0.0039,59312.0,59307.0,0.067442]
[1725333026074,0.0039,59317.0,59313.0,0.09]
[1725333026270,0.51572799,59321.0,59318.0,0.09]
[1725333026672,0.51572799,59321.0,59320.0,0.0004]
[1725333026872,0.3608,59321.0,59320.0,0.067427]
[1725333027068,0.067422,59325.0,59320.0,0.067427]
[1725333027268,0.067422,59325.0,59324.0,0.0904]
[1725333028179,0.067422,59325.0,59324.0,0.1604]
[1725333028380,0.07231441,59325.0,59324.0,0.1604]
[1725333028771,0.07231441,59325.0,59324.0,0.1614]
[1725333028772,0.07831441,59325.0,59324.0,0.1614]
[1725333028980,0.01089241,59325.0,59324.0,0.1614]
[1725333029373,0.01089241,59325.0,59324.0,0.229822]
[1725333029374,0.00589241,59325.0,59324.0,0.229822]
[1725333030576,0.001,59325.0,59324.0,0.229822]
[1725333034573,0.001,59325.0,59324.0,0.590622]
[1725333036981,0.09400013,59325.0,59324.0,0.590622]
[1725333037185,0.09400221,59325.0,59324.0,0.590622]
[1725333037779,0.09400221,59325.0,59324.0,0.229822]
[1725333040484,0.09400221,59325.0,59324.0,0.590622]
[1725333040880,0.09400221,59325.0,59324.0,0.229822]
[1725333044993,0.001,59325.0,59324.0,0.229822]
[1725333049986,0.001,59325.0,59324.0,0.159822]
[1725333057093,0.001,59325.0,59324.0,0.0024]
[1725333057294,0.06743,59317.0,59312.0,0.0039]
[1725333057604,0.58606,59317.0,59306.0,0.36956014]
[1725333057906,1.68310291,59317.0,59307.0,0.09]
[1725333058199,1.76320291,59317.0,59307.0,0.09]
[1725333058403,1.76320291,59317.0,59316.0,0.001]
[1725333058404,1.67420291,59317.0,59316.0,0.001]
[1725333058704,1.67420291,59317.0,59316.0,0.002]
[1725333058705,1.06473,59317.0,59316.0,0.002]
[1725333058891,1.18104773,59317.0,59316.0,0.002]
[1725333059499,1.06947375,59317.0,59316.0,0.002]
[1725333059890,1.22296405,59317.0,59316.0,0.002]
[1725333060306,1.11075614,59317.0,59316.0,0.002]
[1725333062196,1.11075614,59317.0,59315.0,0.00025291]
[1725333062197,2.26826565,59317.0,59315.0,0.00025291]
[1725333062399,2.26826565,59317.0,59306.0,0.0039]
[1725333062400,1.18046079,59316.0,59306.0,0.0039]
[1725333062702,1.18046079,59316.0,59294.0,0.3608]
[1725333062703,0.067447,59302.0,59301.0,0.0039]
[1725333062895,0.1604,59302.0,59294.0,0.3608]
[1725333063092,0.1604,59302.0,59289.0,0.223162]
[1725333063093,0.0004,59295.0,59289.0,0.0786]
[1725333063299,0.2172458,59291.0,59290.0,0.16995193]
[1725333063506,0.25812819,59291.0,59290.0,0.16995193]
[1725333063717,0.10874239,59291.0,59290.0,0.16995193]
[1725333064295,0.159503,59291.0,59290.0,0.16995193]
[1725333064503,0.10774239,59291.0,59290.0,0.16995193]
[1725333064707,0.10774239,59291.0,59290.0,0.1616]
[1725333065600,0.19892595,59291.0,59290.0,0.1616]
[1725333065795,0.24020834,59291.0,59290.0,0.1656]
[1725333066413,0.10774239,59291.0,59290.0,0.1656]
[1725333066904,0.06646,59291.0,59290.0,0.1656]
[1725333067308,0.067454,59297.0,59290.0,0.1656]
[1725333067500,0.067454,59297.0,59296.0,0.1604]
[1725333069013,0.617454,59297.0,59296.0,0.1604]
[1725333069515,0.618454,59297.0,59296.0,0.1604]
[1725333070012,0.617454,59297.0,59296.0,0.0004]
[1725333070404,0.622454,59297.0,59296.0,0.0004]
[1725333075324,0.072454,59297.0,59296.0,0.0004]
[1725333081828,0.433254,59297.0,59296.0,0.0004]
[1725333084040,0.433254,59297.0,59296.0,0.0904]
[1725333084439,0.3658,59297.0,59296.0,0.157854]
[1725333084640,0.3658,59297.0,59296.0,1.092028]
[1725333084641,0.005,59297.0,59296.0,1.092028]
[1725333085141,0.00025291,59298.0,59296.0,1.092028]
[1725333085142,0.00025291,59298.0,59297.0,0.067453]
[1725333085332,0.00025291,59298.0,59297.0,0.148753]
[1725333085734,0.00025291,59298.0,59297.0,0.149153]
[1725333085939,0.00025291,59298.0,59297.0,0.309153]
[1725333086641,0.00325291,59298.0,59297.0,1.415073]
[1725333087039,0.0004,59302.0,59301.0,0.134898]
[1725333087040,1e-06,59302.0,59301.0,0.134898]
[1725333087336,0.0039,59307.0,59306.0,0.067443]
[1725333087541,0.0039,59314.0,59313.0,0.067435]
[1725333087738,0.0004,59316.0,59315.0,0.067433]
[1725333088137,0.0004,59316.0,59315.0,0.067833]
[1725333088444,0.0039,59328.0,59315.0,0.9608]
[1725333088642,0.0048858,59334.0,59327.0,0.1604]
[1725333088835,0.4374,59341.0,59334.0,0.06741]
[1725333089036,0.4374,59341.0,59340.0,0.0004]
[1725333089230,0.4374,59341.0,59339.0,0.16]
[1725333089435,0.44216358,59341.0,59339.0,0.16]
[1725333090135,0.15343339,59340.0,59339.0,0.16]
[1725333090834,0.15343339,59340.0,59339.0,0.001]
[1725333091638,0.09299257,59340.0,59336.0,0.16]
[1725333091832,0.0004,59337.0,59336.0,0.16]
[1725333092031,0.04166708,59337.0,59336.0,0.16]
[1725333092345,0.64339257,59337.0,59336.0,0.16]
[1725333093038,0.82284544,59337.0,59336.0,0.161]
[1725333093240,0.82284544,59337.0,59336.0,0.162]
[1725333093441,0.65739257,59337.0,59336.0,0.162]
[1725333094542,0.65739257,59337.0,59336.0,0.161]
[1725333094748,0.66339257,59337.0,59336.0,0.162]
[1725333095745,0.61166708,59337.0,59336.0,0.162]
[1725333097239,0.5704,59337.0,59336.0,0.162]
[1725333100548,0.637808,59337.0,59336.0,0.162]
[1725333100838,0.637808,59337.0,59336.0,0.002]
[1725333101444,1.903408,59337.0,59336.0,0.002]
[1725333101638,1.970816,59337.0,59336.0,0.002]
[1725333102240,1.743408,59337.0,59336.0,0.002]
[1725333102533,1.143408,59337.0,59336.0,0.002]
[1725333105048,0.637808,59337.0,59336.0,0.002]
[1725333105347,0.79125503,59337.0,59336.0,0.002]
[1725333112157,0.0204,59337.0,59336.0,0.162]
[1725333112346,0.0204,59337.0,59336.0,0.229409]
[1725333112651,0.5704,59337.0,59336.0,0.229409]
[1725333114155,0.0204,59337.0,59336.0,0.229409]
[1725333114460,0.0204,59337.0,59336.0,0.069409]
[1725333115054,0.087808,59337.0,59336.0,0.002]
[1725333115256,0.247808,59337.0,59336.0,0.002]
[1725333115451,0.40503385,59337.0,59336.0,0.002]
[1725333115656,0.28907586,59337.0,59336.0,0.002]
[1725333115850,0.67907586,59337.0,59336.0,0.002]
[1725333116752,0.81219424,59337.0,59336.0,0.002]
[1725333116951,0.67907586,59337.0,59336.0,0.002]
[1725333117153,0.8121849,59337.0,59336.0,0.002]
[1725333117548,0.67907586,59337.0,59336.0,0.002]
[1725333117743,0.61166786,59337.0,59336.0,0.002]
[1725333117947,0.74488723,59337.0,59336.0,0.002]
[1725333118455,0.81229523,59337.0,59336.0,0.002]
[1725333119257,0.67907586,59337.0,59336.0,0.002]
[1725333120155,0.73080657,59337.0,59336.0,0.002]
[1725333125065,0.89646084,59337.0,59336.0,0.002]
[1725333125465,0.89646474,59337.0,59336.0,0.002]
[1725333125666,0.96387274,59337.0,59336.0,0.002]
[1725333127271,0.96387274,59337.0,59336.0,0.00177471]
[1725333127272,0.8586652,59337.0,59336.0,0.00177471]
[1725333133064,1.2194652,59337.0,59336.0,0.00177471]
[1725333133268,0.067412,59333.0,59332.0,0.14582486]
[1725333133471,0.2212612,59333.0,59332.0,0.14582486]
[1725333134977,0.2352612,59333.0,59332.0,0.14682486]
[1725333135181,0.17481355,59333.0,59332.0,0.14682486]
[1725333135679,0.18181355,59333.0,59332.0,0.14782486]
[1725333138968,0.18659519,59333.0,59332.0,0.14782486]
[1725333139477,0.30155934,59333.0,59332.0,0.14782486]
[1725333139680,0.35328982,59333.0,59332.0,0.14782486]
[1725333139873,0.18659519,59333.0,59332.0,0.14782486]
[1725333140382,0.54739519,59333.0,59332.0,0.002]
[1725333140586,0.067418,59328.0,59327.0,0.00065291]
[1725333140774,0.067428,59319.0,59318.0,0.0039]
[1725333140971,0.067431,59317.0,59314.0,0.0782]
[1725333141180,0.0004,59315.0,59314.0,0.0782]
[1725333141379,0.0004,59315.0,59310.0,0.16300644]
[1725333141380,0.1745495,59315.0,59310.0,0.16300644]
[1725333141579,0.49447843,59311.0,59310.0,0.1583]
[1725333141775,0.45421718,59311.0,59310.0,0.1583]
[1725333141979,0.53474277,59311.0,59310.0,0.0792]
[1725333142286,0.47672438,59311.0,59305.0,0.00025291]
[1725333142981,0.11652438,59310.0,59305.0,0.00025291]
[1725333143181,0.3602,59311.0,59305.0,0.16025291]
[1725333143483,0.427637,59311.0,59310.0,0.001]
[1725333143879,0.427637,59311.0,59310.0,0.005]
[1725333144387,0.427637,59311.0,59310.0,0.001]
[1725333144586,0.428637,59311.0,59310.0,0.001]
[1725333144985,0.001,59310.0,59305.0,0.17625291]
[1725333145184,0.06744,59309.0,59305.0,0.17099162]
[1725333145775,0.06644,59309.0,59305.0,0.16499162]
[1725333146782,0.06744,59309.0,59305.0,0.17099162]
[1725333147188,0.06844,59309.0,59305.0,0.17799162]
[1725333147779,0.3608,59306.0,59305.0,0.17799162]
[1725333147980,0.06844,59309.0,59305.0,0.17799162]
[1725333148185,0.06844,59309.0,59308.0,0.0004]
[1725333148797,0.06884,59309.0,59308.0,0.0004]
[1725333148983,0.0014,59309.0,59308.0,0.227841]
[1725333149889,0.0014,59309.0,59308.0,0.230841]
[1725333150188,0.11792438,59309.0,59308.0,0.230841]
[1725333150492,0.0014,59309.0,59308.0,0.230841]
[1725333150684,0.11792438,59309.0,59308.0,0.230841]
[1725333150884,0.11792438,59309.0,59308.0,0.236841]
[1725333152084,0.0014,59309.0,59308.0,0.236841]
[1725333153281,0.06884,59309.0,59308.0,0.0094]
[1725333153479,0.18536438,59309.0,59308.0,0.0094]
[1725333155387,0.18536438,59309.0,59308.0,0.1694]
[1725333155583,0.06884,59309.0,59308.0,0.1694]
[1725333155790,0.0014,59309.0,59308.0,0.236841]
[1725333157690,0.0014,59309.0,59308.0,0.1694]
[1725333157896,0.06884,59309.0,59308.0,0.0094]
[1725333160488,0.49708,59309.0,59308.0,0.0094]
[1725333160996,1.01138718,59309.0,59308.0,0.0094]
[1725333161990,0.50554718,59309.0,59308.0,0.0094]
[1725333164394,0.5468409,59309.0,59308.0,0.0094]
[1725333166601,0.5468409,59309.0,59305.0,0.00025291]
[1725333166602,0.134886,59306.0,59305.0,0.00025291]
[1725333166799,0.69738139,59306.0,59305.0,0.00025291]
[1725333168199,0.69838139,59306.0,59305.0,0.00625291]
[1725333168591,0.69938139,59306.0,59305.0,0.00725291]
[1725333169696,0.70425364,59306.0,59305.0,0.00725291]
[1725333171693,0.75601456,59306.0,59305.0,0.00725291]
[1725333172898,0.66295825,59306.0,59305.0,0.00725291]
[1725333176008,0.00727225,59306.0,59305.0,0.00725291]
[1725333176205,0.069843,59306.0,59305.0,0.00725291]
[1725333180101,0.11113291,59306.0,59305.0,0.00725291]
[1725333180304,0.16288701,59306.0,59305.0,0.00725291]
[1725333183008,0.168547,59306.0,59305.0,0.07469691]
[1725333183311,0.22029792,59306.0,59305.0,0.07469691]
[1725333183508,0.2615853,59306.0,59305.0,0.07469691]
[1725333183811,0.0954383,59306.0,59305.0,0.07469691]
[1725333186912,0.0024,59306.0,59305.0,0.07469691]
[1725333187211,0.0039,59313.0,59312.0,0.067436]
[1725333187418,0.00025291,59316.0,59315.0,0.067433]
[1725333187714,0.00025291,59316.0,59315.0,0.827833]
[1725333188017,0.00025291,59316.0,59315.0,1.693993]
[1725333188312,0.00865891,59323.0,59322.0,0.067425]
[1725333188506,0.00475891,59323.0,59322.0,0.227825]
[1725333188706,0.3608,59327.0,59323.0,0.067424]
[1725333188917,0.3608,59327.0,59326.0,0.16]
[1725333189107,0.3608,59327.0,59326.0,0.22782]
[1725333189307,0.91559724,59327.0,59326.0,0.22782]
[1725333189506,0.91559724,59327.0,59326.0,0.06782]
[1725333189914,0.91559724,59327.0,59326.0,0.0004]
[1725333190210,0.92659724,59327.0,59326.0,0.0004]
[1725333190403,0.99401624,59327.0,59326.0,0.0004]